Cogmind - Beta 17 @@@ ROGUE MODE // 2026.07.31 @ 20:52:23 Player: 4R-ZE3 Result: Escaped! Performance ------------- Evolutions (9) 4500 Regions Visited (16) 3200 Robots Destroyed (54) 270 Value Destroyed (1742) 1742 Prototype IDs (28) 560 Alien Tech Used (18) 3600 Bonus (5800) 5800 TOTAL SCORE: 19672 Bonus ------- Registered with UFD 300 Met Optimus in HQ 500 Met Warlord at Base 500 MAIN.C Attacked Warlord 500 Scanned by Researcher 500 Pursued by Intercept 500 Win 3000 Cogmind --------- Core Integrity 756/1600 Matter 10/425 Energy 94/100 System Corruption 0% +Membrane Temperature Cool (33) +ITN Movement Flying (29) +NEM 1 Location To Epsilon Eridani Parts ------- > --- POWER (2) -------- (None) > --- PROPULSION (9) --- Field Propulsion Array Q-thruster Impulse Thruster Array Improved Q-thruster Improved Q-thruster > --- UTILITY (12) ----- Enhanced Optical Array Advanced Sensor Array Long-range Sensor Array Advanced Signal Interpreter Long-range Terrain Scanner Layered Heavy Armor Plating Graphene Brace Spacefold Activator Microwarp Drive > --- WEAPON (2) ------- Nova Cannon > --- INVENTORY (5) ---- Improved Heavy Armor Plating Heavy Insulated Plating Spacefold Activator Peak State ------------ > --- POWER ------------ Matter Drive > --- PROPULSION ------- Field Propulsion Array Q-thruster Impulse Thruster Array Improved Q-thruster Improved Q-thruster Improved Q-thruster > --- UTILITY ---------- Advanced Heat Sink Large Storage Unit Enhanced Optical Array Advanced ECM Suite Cloaking Device Graphene Brace Improved System Shield Spacefold Activator Microwarp Drive > --- WEAPON ----------- Sigix Sheargun Vortex Cannon > --- INVENTORY -------- Light Antimatter Reactor Light Quantum Reactor Field Propulsion Array Improved Q-thruster High-powered Transdimensional Reconstructor Subatomic Replicator Sigix Sheargun Sigix Sheargun [Rating: 198] Favorites ----------- Power Light Ion Engine Engine Light Ion Engine Power Core Light Nuclear Core Reactor Light Antimatter Reactor Propulsion Light Treads Treads Light Treads Leg Arachnoskeleton Wheel Overtuned Scrapsphere Hover Unit Gyrokinetic Inverter Flight Unit Improved Q-thruster Utility Large Storage Unit Device Advanced Heat Sink Storage Large Storage Unit Processor Enhanced Optical Array Hackware Improved System Shield Protection Makeshift Thermal Plating Artifact Spacefold Activator Weapon Particle Gun Energy Gun Particle Gun Energy Cannon Nova Cannon Ballistic Gun Assault Rifle Ballistic Cannon Battle Cannon Launcher Grenade Launcher Special Weapon Mining Laser Impact Weapon Heavy Hammer Slashing Weapon Companion Sword Build | -11 -10 -10 -8 -8 -6 -5 -5 -5 -5 -4 -4 -3 -2 -2 -2 -1 ------- Run | Yrd Mat Sub Rec Scr Fac Fac Upp Upp War Pro Fac Res Res Qua Sec Acc Slots Evolved 18 | . . . . . 8 2 . . . . 2 2 2 . . 2 Power 1 | . . . . . 1 . . . . . . . . . . . Propulsion 7 | . . . . . 4 . . . . . . 1 1 . . 1 Utility 10 | . . . . . 3 2 . . . . 2 1 1 . . 1 Weapon . | . . . . . . . . . . . . . . . . . Parts Attached 116 | 6 11 8 . 7 19 9 5 . 4 1 7 10 1 3 14 11 Power 14 | 1 1 1 . 1 2 2 . . 1 . 2 . . . 3 . Engine 3 | 1 . 1 . . . 1 . . . . . . . . . . Core 6 | . 1 . . 1 2 1 . . . . 1 . . . . . Reactor 5 | . . . . . . . . . 1 . 1 . . . 3 . Propulsion 41 | 2 2 2 . 4 8 2 2 . 1 . 1 8 1 1 4 3 Treads 8 | 2 2 2 . 2 . . . . . . . . . . . . Leg 1 | . . . . . 1 . . . . . . . . . . . Wheel 2 | . . . . 2 . . . . . . . . . . . . Hover 13 | . . . . . 6 2 2 . 1 . 1 1 . . . . Flight 17 | . . . . . 1 . . . . . . 7 1 1 4 3 Utility 43 | 1 4 2 . 2 7 5 3 . 2 1 4 2 . . 3 7 Device 18 | . 1 1 . . 2 3 3 . 2 1 1 . . . 1 3 Storage 3 | 1 1 . . 1 . . . . . . . . . . . . Processor 6 | . . . . . 4 1 . . . . . . . . . 1 Hackware 6 | . . . . . 1 . . . . . 2 2 . . . 1 Protection 7 | . 2 1 . 1 . 1 . . . . 1 . . . . 1 Artifact 3 | . . . . . . . . . . . . . . . 2 1 Weapon 18 | 2 4 3 . . 2 . . . . . . . . 2 4 1 Energy Gun 7 | 1 2 1 . . . . . . . . . . . . 3 . Energy Cannon 3 | . . . . . . . . . . . . . . 1 1 1 Ballistic Gun 1 | 1 . . . . . . . . . . . . . . . . Ballistic Cannon 2 | . . 2 . . . . . . . . . . . . . . Launcher 1 | . 1 . . . . . . . . . . . . . . . Special Weapon 1 | . 1 . . . . . . . . . . . . . . . Impact Weapon 1 | . . . . . 1 . . . . . . . . . . . Slashing Weapon 2 | . . . . . 1 . . . . . . . . 1 . . Piercing Weapon . | . . . . . . . . . . . . . . . . . Special Melee Weapon . | . . . . . . . . . . . . . . . . . Unidentified Prototypes 22 | . . . . . 2 . . . 1 . 1 . . 1 17 . Parts Lost 44 | . . 4 . . 13 . 2 2 1 . 2 . . 2 16 2 Power 7 | . . 1 . . 2 . . 1 . . . . . . 3 . Propulsion 15 | . . . . . 7 . 1 . 1 . . . . 1 3 2 Utility 15 | . . 1 . . 3 . 1 1 . . 2 . . 1 6 . Weapon 7 | . . 2 . . 1 . . . . . . . . . 4 . Highest Loss Streak 13 | . . 3 . . 13 . 1 2 1 . 2 . . 2 7 1 To Critical Strikes . | . . . . . . . . . . . . . . . . . Average Backups 11 | 2 10 13 11 12 10 12 13 13 13 14 13 13 12 11 11 2 Power . | . 1 . . . . . . . . . . 1 1 1 1 . Propulsion 5 | 1 3 6 5 6 2 4 6 7 6 6 6 7 7 5 3 . Utility 3 | . 1 2 2 2 3 7 7 6 5 6 4 3 2 1 1 1 Weapon 2 | . 3 4 3 3 3 . . . 1 2 2 2 2 2 2 . Tool/Special . | . . . . . . . . . . . . . . . . . Unused Backups 28 | 1 2 4 . . 1 7 3 . . 1 . 1 . 4 2 2 Power 2 | . . . . . . . . . . . . . . 1 1 . Propulsion 9 | . 2 2 . . . . . . . . . 1 . 3 1 . Utility 15 | 1 . 1 . . . 7 3 . . 1 . . . . . 2 Weapon 2 | . . 1 . . 1 . . . . . . . . . . . Tool/Special . | . . . . . . . . . . . . . . . . . Average Slot Usage (%) 88 | . 98 94 89 99 64 92 93 88 89 94 93 78 81 81 74 58 Engine 4 | . 3 12 14 8 1 5 5 2 3 . . . . . . . Core 4 | . 10 . . 5 3 4 5 5 5 5 2 . . . . . Reactor 1 | . . . . . . . . . . 5 7 8 8 8 6 . Treads 13 | . 28 28 28 26 11 . . . . . . . . . . . Hover 9 | . . . . . 7 33 34 35 35 35 31 2 . . . . Flight 4 | . . . . . 1 . . . . . . 19 21 21 21 21 Device 8 | . . 1 . . 8 13 16 20 20 23 21 16 20 20 14 13 Storage 8 | . 14 14 14 14 3 5 5 5 5 5 5 4 4 4 3 . Processor 5 | . . . . . 8 12 11 11 11 11 10 9 8 8 6 6 Hackware 3 | . . . . . 1 5 5 . . . 9 11 13 13 10 5 Protection 5 | . 12 7 14 14 2 1 . . . . . . . . . 1 Energy Gun 7 | . 16 10 8 17 . . . . . . . . . . 1 . Ballistic Gun 1 | . 10 . . . . . . . . . . . . . . . Ballistic Cannon 3 | . . 16 8 9 . . . . . . . . . . . . Slashing Weapon 2 | . . . . . 5 5 5 5 5 5 5 4 4 3 3 . Peak Build Rating 198 | 6 13 16 16 23 60 75 83 85 94 94 108 121 135 161 198 173 Average Rating 60 | 5 10 11 14 17 46 68 79 79 80 93 103 115 134 156 164 136 On Entrance 66 | . 6 13 16 12 23 43 75 80 75 94 94 108 121 135 155 82 Avg Prop Armor Cover (%) 4 | . . . . 3 5 5 6 17 1 . . . . . 2 . Naked Turns . | . . . . . . . . . . . . . . . . . Heaviest Build 69 | 12 34 34 33 59 68 44 44 43 46 47 61 61 52 58 69 45 Greatest Support 83 | 40 40 40 40 43 83 55 62 65 66 62 66 73 64 64 67 75 Greatest Overweight (x) 7 | 2 . . . 7 7 . . . . . . . . . 1 . Average Overweight (x) . | . . . . 1 . . . . . . . . . . . . Largest Inventory Capacity 20 | 8 15 15 15 20 20 15 15 15 15 15 15 15 15 15 15 5 Average Capacity 15 | 7 13 15 15 19 15 15 15 15 15 15 15 15 15 15 14 5 Most Carried 20 | 5 15 15 15 20 19 15 15 14 15 15 15 15 14 15 15 5 Average Carried 12 | 2 10 14 14 15 11 13 14 14 14 14 14 14 13 13 12 4 Final Capacity 20 | 8 15 15 15 20 5 15 15 15 15 15 15 15 15 15 5 5 Final Carried 20 | 5 15 14 15 20 4 15 15 14 15 15 15 15 13 11 5 5 Class Distribution -------------------- 40% | Mutant 15% | Hacker-Ninja 12% | Derelict-Mutant 10% | Ninja 7% | Scout 4% | Hacker-Sprinter 4% | Scavenger-Mutant Dominant Class ---------------- Mutant | -10/Materials Mutant | -10/Subcaves Mutant | -8/Recycling Mutant | -8/Scraptown Derelict-Mutant | -6/Factory Scout | -5/Factory Scout | -5/Upper Caves Ninja | -5/Upper Caves Ninja | -5/Warlord Ninja | -4/Proximity Caves Hacker-Ninja | -4/Factory Hacker-Ninja | -3/Research Hacker-Ninja | -2/Research Hacker-Ninja | -2/Quarantine Hacker-Sprinter | -2/Section 7 Hacker-Scout | -1/Access Resources | -11 -10 -10 -8 -8 -6 -5 -5 -5 -5 -4 -4 -3 -2 -2 -2 -1 ----------- Run | Yrd Mat Sub Rec Scr Fac Fac Upp Upp War Pro Fac Res Res Qua Sec Acc Matter Collected 1922 | 198 454 192 . 184 292 129 70 . 55 20 25 . 33 . 270 . Remotely . | . . . . . . . . . . . . . . . . . Salvage Created 2239 | 173 618 112 . . 635 245 60 . . . . . 33 . 240 123 Parts 127 | 11 41 9 . . 33 8 7 . . . . . 2 . 11 5 Haulers Intercepted 3 | . 2 . . . . 1 . . . . . . . . . . Recyclers Shooed 1 | 1 . . . . . . . . . . . . . . . . Parts Field Recycled . | . . . . . . . . . . . . . . . . . Retrieved Matter . | . . . . . . . . . . . . . . . . . Parts Self-Destructed 23 | . . 13 . . . . 10 . . . . . . . . . Prevented . | . . . . . . . . . . . . . . . . . Parts Restored . | . . . . . . . . . . . . . . . . . Kills | -11 -10 -10 -8 -8 -6 -5 -5 -5 -5 -4 -4 -3 -2 -2 -2 -1 ------- Run | Yrd Mat Sub Rec Scr Fac Fac Upp Upp War Pro Fac Res Res Qua Sec Acc Combat Hostiles Destroyed 31 | . 13 7 . . 10 . 1 . . . . . . . . . Melee 11 | . . . . . 10 . 1 . . . . . . . . . Guns 11 | . 10 1 . . . . . . . . . . . . . . Cannons 5 | . . 5 . . . . . . . . . . . . . . AOE 4 | . 3 1 . . . . . . . . . . . . . . Classes Destroyed 15 | 2 4 2 . . 4 . . . . . . . 1 . 2 . Worker 2 | . 2 . . . . . . . . . . . . . . . Tunneler 5 | 4 1 . . . . . . . . . . . . . . . Hauler 3 | . 2 . . . . 1 . . . . . . . . . . Recycler 4 | 1 . . . . 1 1 . . . . . . . . . 1 Mechanic 1 | . . . . . . . . . . . . . . . 1 . Operator 1 | . . . . . 1 . . . . . . . . . . . Turret 2 | . . 2 . . . . . . . . . . . . . . Watcher 2 | . . . . . . . . . . . . . 1 . 1 . Swarmer 11 | . 3 4 . . 4 . . . . . . . . . . . Grunt 12 | . 10 . . . 2 . . . . . . . . . . . Brawler 1 | . . . . . 1 . . . . . . . . . . . Researcher 3 | . . . . . . . . . . . . . . . 3 . Hunter 2 | . . . . . 2 . . . . . . . . . . . Programmer 2 | . . . . . 1 . 1 . . . . . . . . . Subdweller 3 | . . 3 . . . . . . . . . . . . . . Best Kill Streak 6 | 5 5 6 . . 5 1 1 . . . . . 1 . 1 1 Combat Bots Only 5 | . 5 4 . . 5 . 1 . . . . . . . . . Max Kills in Single Turn 1 | 1 1 1 . . 1 1 1 . . . . . 1 . 1 1 Gunslinging . | . . . . . . . . . . . . . . . . . Exploded 1 | . 1 1 . . . . . . . . . . . . . . Melee 1 | . . . . . 1 . 1 . . . . . . . . . Uniques/NPCs Destroyed . | . . . . . . . . . . . . . . . . . Combat | -11 -10 -10 -8 -8 -6 -5 -5 -5 -5 -4 -4 -3 -2 -2 -2 -1 -------- Run | Yrd Mat Sub Rec Scr Fac Fac Upp Upp War Pro Fac Res Res Qua Sec Acc Hostile Shots Fired 863 | . 68 89 . . 197 10 12 13 4 . 4 4 4 30 330 98 Missed 335 | . 24 33 . . 52 9 4 5 2 . . 2 3 14 131 56 Hits 528 | . 44 56 . . 145 1 8 8 2 . 4 2 1 16 199 42 Melee 16 | . . . . . 8 . . . . . . . . . . 8 Projectile 512 | . 44 56 . . 137 1 8 8 2 . 4 2 1 16 199 34 AOE 3 | . . 1 . . . . . . . . . . . . . 2 Critical Strikes 28 | . 2 3 . . 4 . 2 . . . 1 . 1 . 10 5 Actively Blocked 11 | . 2 . . . . . . . . . . . . . 4 5 Part Disruptions 1 | . . . . . . . . . . . . . . . 1 . Damage Taken 10995 | . 591 739 . . 2339 21 159 136 38 . 101 56 33 454 4443 1885 Core 2593 | . 98 107 . . 447 21 . 13 18 . . . 33 23 989 844 Absorbed by Shields . | . . . . . . . . . . . . . . . . . Redirected to Shielding 28 | . 28 . . . . . . . . . . . . . . . Ignored by Resistances 284 | . . 17 . . . . . . . . . . . . 261 6 Regen/Repaired (Parts) 1639 | . . . . 323 . . . . 1 . . . . 84 1231 . Core Remaining (%) 67 | 100 . . . 18 47 . . . . 94 100 100 . . 34 47 Volleys Fired 133 | 17 55 34 . . . . . . . . . . . 4 18 5 Largest 2 | 2 2 2 . . . . . . . . . . . 1 2 1 Hottest 200 | 70 130 100 . . . . . . . . . . . 50 200 113 Shots Fired 246 | 34 108 65 . . . . . . . . . . . 4 30 5 Gun 183 | 34 101 23 . . . . . . . . . . . . 25 . Cannon 53 | . . 39 . . . . . . . . . . . 4 5 5 Launcher 6 | . 5 1 . . . . . . . . . . . . . . Special 4 | . 2 2 . . . . . . . . . . . . . . Kinetic 103 | 17 47 39 . . . . . . . . . . . . . . Thermal 103 | 17 56 25 . . . . . . . . . . . . . 5 Explosive 6 | . 5 1 . . . . . . . . . . . . . . Electromagnetic . | . . . . . . . . . . . . . . . . . Slashing 25 | . . . . . . . . . . . . . . . 25 . Entropic 9 | . . . . . . . . . . . . . . 4 5 . Robot Hit Streak 16 | 8 16 13 . . . . . . . . . . . . 3 1 Robot Miss Streak 4 | 3 2 4 . . . . . . . . . . . . 2 . Penetration Max 1 | . . . . . . . . . . . . . . . 1 . Secondary Targets 1 | . 1 . . . . . . . . . . . . . . . Max Gunslinging Chain 1 | . 1 . . . . . . . . . . . . . . . Shots Hit Robots 207 | 23 77 40 . . 37 8 2 . . . 1 1 2 . 15 1 Core Hits 77 | 6 33 13 . . 16 1 1 . . . 1 . . . 5 1 Critical Kills . | . . . . . . . . . . . . . . . . . Critical Parts Destroyed . | . . . . . . . . . . . . . . . . . Critical Strikes 7 | 1 3 1 . . . . . . . . . . . . 2 . Burn 5 | 1 3 1 . . . . . . . . . . . . . . Sunder 2 | . . . . . . . . . . . . . . . 2 . Melee Attacks 138 | . . . . . 53 13 5 . . . 11 12 3 9 32 . Impact 2 | . . . . . 2 . . . . . . . . . . . Slashing 136 | . . . . . 51 13 5 . . . 11 12 3 9 32 . Piercing . | . . . . . . . . . . . . . . . . . Sneak Attacks 9 | . . . . . 2 2 . . . . . . 1 . 4 . Combat Hostiles . | . . . . . . . . . . . . . . . . . Follow-up Attacks 1 | . . . . . 1 . . . . . . . . . . . Damage Inflicted 5804 | 261 1154 861 . . 1499 443 105 . . . 47 45 119 . 1232 38 Guns 1842 | 261 957 308 . . . . . . . . . . . . 316 . Cannons 640 | . . 458 . . . . . . . . . . . . 144 38 Explosions 292 | . 197 95 . . . . . . . . . . . . . . Melee 3030 | . . . . . 1499 443 105 . . . 47 45 119 . 772 . Ramming . | . . . . . . . . . . . . . . . . . Kinetic 1063 | 160 445 458 . . . . . . . . . . . . . . Thermal 959 | 101 512 308 . . . . . . . . . . . . . 38 Explosive 292 | . 197 95 . . . . . . . . . . . . . . Electromagnetic . | . . . . . . . . . . . . . . . . . Impact 52 | . . . . . 52 . . . . . . . . . . . Slashing 3294 | . . . . . 1447 443 105 . . . 47 45 119 . 1088 . Piercing . | . . . . . . . . . . . . . . . . . Entropic 144 | . . . . . . . . . . . . . . . 144 . Highest Corruption 3 | . 1 1 1 . 1 . 1 1 1 . . . . 2 3 . Average Corruption 1 | . 1 1 1 . 1 . 1 1 1 . . . . 2 2 . Corruption Purged . | . . . . . . . . . . . . . . . . . Corruption Blocked . | . . . . . . . . . . . . . . . . . Effects 23 | . 2 5 2 . 1 . . 1 . . . . . 1 11 . Message Errors 5 | . 1 . 1 . . . . . . . . . . . 3 . Matter Fused 8 | . . 3 . . 1 . . . . . . . . . 4 . Heat Flow Errors 5 | . 1 1 1 . . . . . . . . . . . 2 . Energy Discharges 2 | . . . . . . . . 1 . . . . . . 1 . Data Loss (minor) 2 | . . . . . . . . . . . . . . 1 1 . Misfires 1 | . . 1 . . . . . . . . . . . . . . Overload Shots . | . . . . . . . . . . . . . . . . . Overflow Damage 474 | . 2 8 . . 105 73 . . . . . 5 49 . 232 . Projectiles 8 | . . 8 . . . . . . . . . . . . . . Explosions 2 | . 2 . . . . . . . . . . . . . . . Melee 464 | . . . . . 105 73 . . . . . 5 49 . 232 . Knockbacks 6 | . . 6 . . . . . . . . . . . . . . Impact . | . . . . . . . . . . . . . . . . . Kinetic 6 | . . 6 . . . . . . . . . . . . . . Secondary . | . . . . . . . . . . . . . . . . . Self-Inflicted Damage 34 | . 34 . . . . . . . . . . . . . . . Shots 2 | . 2 . . . . . . . . . . . . . . . Rammed . | . . . . . . . . . . . . . . . . . Targets Rammed . | . . . . . . . . . . . . . . . . . Kicked . | . . . . . . . . . . . . . . . . . Crushed . | . . . . . . . . . . . . . . . . . Highest Temperature 305 | 153 240 275 151 . 3 214 305 10 217 . 155 58 . . 256 23 Average Temperature 68 | 76 64 73 83 . 3 65 178 2 48 . 24 32 . . 101 15 Received Heat Transfer 1468 | . 237 538 . . 351 . 9 54 . . 18 9 . 9 225 18 Thermoelectric Energy+ 35 | . . . . . . . . . . . . . . . 35 . Effects 5 | . 3 1 . . . . . . . . . . . . 1 . Energy Bleed 3 | . 1 1 . . . . . . . . . . . . 1 . Interference 2 | . 2 . . . . . . . . . . . . . . . Siege Activations . | . . . . . . . . . . . . . . . . . Martial Activations . | . . . . . . . . . . . . . . . . . Shielding Activations . | . . . . . . . . . . . . . . . . . Robots Disrupted 2 | . . . . . 1 . . . . . 1 . . . . . Combat Hostiles 1 | . . . . . 1 . . . . . . . . . . . Robots Corrupted . | . . . . . . . . . . . . . . . . . Combat Hostiles . | . . . . . . . . . . . . . . . . . Parts Fried . | . . . . . . . . . . . . . . . . . Impact Corruptions . | . . . . . . . . . . . . . . . . . Robots Melted . | . . . . . . . . . . . . . . . . . Combat Hostiles . | . . . . . . . . . . . . . . . . . Parts Melted 6 | 1 5 . . . . . . . . . . . . . . . Heat Transferred 2923 | 370 1702 814 . . . . . . . . . . . . . 37 Parts Sabotaged . | . . . . . . . . . . . . . . . . . Parts Stolen . | . . . . . . . . . . . . . . . . . Parts Stripped . | . . . . . . . . . . . . . . . . . Power Chain Reactions . | . . . . . . . . . . . . . . . . . Alert | -11 -10 -10 -8 -8 -6 -5 -5 -5 -5 -4 -4 -3 -2 -2 -2 -1 ------- Run | Yrd Mat Sub Rec Scr Fac Fac Upp Upp War Pro Fac Res Res Qua Sec Acc Maximum Alert Level 1 | . . . . . . . . . . . . . . . 1 . Low Security (%) 98 | 100 100 . 100 . 100 100 . . . . 100 100 100 100 87 100 Level 1 1 | . . . . . . . . . . . . . . . 12 . Level 2 . | . . . . . . . . . . . . . . . . . Level 3 . | . . . . . . . . . . . . . . . . . Level 4 . | . . . . . . . . . . . . . . . . . Level 5 . | . . . . . . . . . . . . . . . . . High Security . | . . . . . . . . . . . . . . . . . Max Security . | . . . . . . . . . . . . . . . . . Peak Influence 248 | 10 110 . 94 . 90 50 . . . . 31 34 20 55 248 52 Initial 87 | . . . 87 . . 24 . . . . . 5 . . 30 52 Average 32 | 1 31 . 25 . 16 10 . . . . 2 7 4 7 130 15 Influence Increases 2391 | 25 376 225 22 . 382 123 110 45 . . 69 95 37 149 629 104 Destroy 0b10 Robot/C 660 | . 260 120 . . 200 . 20 . . . . . . . 60 . Destroy 0b10 Robot/NC 90 | 25 25 . . . 10 10 . . . . . . 5 . 10 5 Destroy Leader 120 | . 64 . . . 50 2 . . . . . . 2 . 2 . Successful Hack 129 | . 5 . 22 . 25 . . . . . 19 . 12 14 32 . Disable Machine 255 | . . . . . . 15 . . . . . . . 30 195 15 Destroy Structure 147 | . 22 . . . 7 6 . . . . 20 20 3 30 30 9 Partial Spotted 285 | . . . . . . 30 . . . . 30 75 15 . 90 45 Lose Combat Pursuer 705 | . . 105 . . 90 60 90 45 . . . . . 75 210 30 Influence Decreases 2376 | 25 369 49 205 . 331 173 64 87 5 . 58 106 37 94 595 178 Entered New Map 211 | . . 4 96 . . 27 1 10 5 . . 6 . . 25 37 Time Decay 1607 | 25 369 35 10 . 201 146 53 77 . . 38 100 37 75 310 131 Search Patrol Dispatched 100 | . . . . . . . . . . . . . . . 100 . Lost Part 340 | . . 10 . . 130 . 10 . . . 20 . . . 160 10 Purge Threat 118 | . . . 99 . . . . . . . . . . 19 . . Squads Dispatched 28 | . 1 . . . 3 2 . . . . 3 3 . 1 7 8 Investigation 3 | . . . . . 1 . . . . . 1 . . . . 1 Extermination 10 | . . . . . 1 1 . . . . 1 1 . 1 2 3 Reinforcement 14 | . 1 . . . 1 1 . . . . 1 2 . . 4 4 Assault . | . . . . . . . . . . . . . . . . . Garrison . | . . . . . . . . . . . . . . . . . Intercept 1 | . . . . . . . . . . . . . . . 1 . Searches Triggered 1 | . . . . . . . . . . . . . . . 1 . Construction Impeded . | . . . . . . . . . . . . . . . . . Haulers Reinforced . | . . . . . . . . . . . . . . . . . Active Scanning Responses . | . . . . . . . . . . . . . . . . . Cargo Convoy Interrupts . | . . . . . . . . . . . . . . . . . Stealth | -11 -10 -10 -8 -8 -6 -5 -5 -5 -5 -4 -4 -3 -2 -2 -2 -1 --------- Run | Yrd Mat Sub Rec Scr Fac Fac Upp Upp War Pro Fac Res Res Qua Sec Acc Distress Signals 14 | . 3 . . . . 1 . . . . . . . . 7 3 Communications Jammed . | . . . . . . . . . . . . . . . . . Distress Signals . | . . . . . . . . . . . . . . . . . Times Spotted 318 | . 22 10 . . 19 12 23 4 8 . 2 2 4 10 127 75 Peak Tracking Total 17 | . 4 4 . . 8 6 9 3 4 . 2 2 3 7 17 11 Tactical Retreats 34 | . . 3 . . 3 1 4 2 . . . 1 . 2 16 2 ECM-based Alert Blocks 40 | . . . . . . . . . . . . 1 . . 39 . Traps | -11 -10 -10 -8 -8 -6 -5 -5 -5 -5 -4 -4 -3 -2 -2 -2 -1 ------- Run | Yrd Mat Sub Rec Scr Fac Fac Upp Upp War Pro Fac Res Res Qua Sec Acc Traps Triggered 6 | . 2 . . . . . . . . . . . . 1 1 2 Indirectly . | . . . . . . . . . . . . . . . . . Trap Hack Attempts . | . . . . . . . . . . . . . . . . . Triggered . | . . . . . . . . . . . . . . . . . Disarmed . | . . . . . . . . . . . . . . . . . Reprogrammed . | . . . . . . . . . . . . . . . . . Reused . | . . . . . . . . . . . . . . . . . Traps Extracted . | . . . . . . . . . . . . . . . . . Installed . | . . . . . . . . . . . . . . . . . Triggered . | . . . . . . . . . . . . . . . . . Machines | -11 -10 -10 -8 -8 -6 -5 -5 -5 -5 -4 -4 -3 -2 -2 -2 -1 ---------- Run | Yrd Mat Sub Rec Scr Fac Fac Upp Upp War Pro Fac Res Res Qua Sec Acc Machines Disabled 20 | . . 3 . . . 1 . . . . . . . 2 13 1 Max in Single Turn 1 | . . 1 . . . 1 . . . . . . . 1 1 1 Garrison Access 1 | . . . . . . 1 . . . . . . . . . . Machines Repaired . | . . . . . . . . . . . . . . . . . Machines Dismantled . | . . . . . . . . . . . . . . . . . Machines Sabotaged . | . . . . . . . . . . . . . . . . . Overloaded Fab Kills . | . . . . . . . . . . . . . . . . . Hacking | -11 -10 -10 -8 -8 -6 -5 -5 -5 -5 -4 -4 -3 -2 -2 -2 -1 --------- Run | Yrd Mat Sub Rec Scr Fac Fac Upp Upp War Pro Fac Res Res Qua Sec Acc Machines Accessed 57 | . 6 1 4 6 5 3 . . 6 . 5 1 2 4 9 5 Terminals 34 | . 5 . 3 . 2 2 . . . . 3 1 1 3 9 5 Fabricators . | . . . . . . . . . . . . . . . . . Repair Stations . | . . . . . . . . . . . . . . . . . Recycling Units 5 | . 1 . 1 . 1 . . . . . 2 . . . . . Scanalyzers 2 | . . . . . 1 . . . . . . . 1 . . . Garrison Access 3 | . . . . . 1 1 . . . . . . . 1 . . Total Hacks 161 | . 8 9 10 37 11 5 . . 14 . 14 5 8 7 21 12 Successful 97 | . 4 9 4 37 5 2 . . 14 . 5 1 3 3 10 . Failed 64 | . 4 . 6 . 6 3 . . . . 9 4 5 4 11 12 Catastrophic 14 | . . . 2 . 1 1 . . . . 2 1 1 2 1 3 Database Lockouts . | . . . . . . . . . . . . . . . . . Manual 52 | . 5 . 9 . 6 4 . . . . 11 5 1 1 8 2 Terminals 77 | . 5 . 9 . 6 4 . . . . 10 5 1 4 21 12 Fabricators . | . . . . . . . . . . . . . . . . . Repair Stations . | . . . . . . . . . . . . . . . . . Recycling Units 9 | . 3 . 1 . 1 . . . . . 4 . . . . . Scanalyzers 9 | . . . . . 2 . . . . . . . 7 . . . Garrison Access 6 | . . . . . 2 1 . . . . . . . 3 . . Terminal Hacks 78 | . 3 9 2 37 1 . . . 14 . 1 . . 2 9 . Record 51 | . . 8 . 29 . . . . 12 . . . . 1 1 . Robot Analysis 11 | . 3 . 1 7 . . . . . . . . . . . . Open Door 8 | . . . . 1 . . . . 2 . . . . . 5 . Level Access Points 2 | . . . . . . . . . . . 1 . . . 1 . Unreport Threat 2 | . . . 1 . . . . . . . . . . 1 . . Zone Layout 2 | . . . . . 1 . . . . . . . . . 1 . Proto ID Catalog 1 | . . 1 . . . . . . . . . . . . . . Activate Exoskeleton 1 | . . . . . . . . . . . . . . . 1 . Fabricator Hacks . | . . . . . . . . . . . . . . . . . Repair Station Hacks . | . . . . . . . . . . . . . . . . . Recycling Unit Hacks 2 | . 1 . . . . . . . . . 1 . . . . . Retrieve Components 2 | . 1 . . . . . . . . . 1 . . . . . Scanalyzer 4 | . . . . . 1 . . . . . . . 3 . . . Retrieve Study 4 | . . . . . 1 . . . . . . . 3 . . . Garrison Access Hacks 1 | . . . . . . 1 . . . . . . . . . . Seal Access 1 | . . . . . . 1 . . . . . . . . . . Unauthorized Hacks 12 | . . . 2 . 3 1 . . . . 3 1 . 1 1 . Terminals 10 | . . . 2 . 2 1 . . . . 2 1 . 1 1 . Botnet 10 | . . . 2 . 2 1 . . . . 2 1 . 1 1 . Fabricators . | . . . . . . . . . . . . . . . . . Repair Stations . | . . . . . . . . . . . . . . . . . Recycling Units 2 | . . . . . 1 . . . . . 1 . . . . . Fedlink 2 | . . . . . 1 . . . . . 1 . . . . . Scanalyzers . | . . . . . . . . . . . . . . . . . Garrison Access . | . . . . . . . . . . . . . . . . . Data Cores Recovered . | . . . . . . . . . . . . . . . . . Used . | . . . . . . . . . . . . . . . . . Hacking Detections 33 | . 5 . 4 . 4 2 . . . . 3 1 2 3 4 5 Full Trace Events 1 | . . . 1 . . . . . . . . . . . . . Feedback Events . | . . . . . . . . . . . . . . . . . Feedback Blocked . | . . . . . . . . . . . . . . . . . Robot Schematics Acquired . | . . . . . . . . . . . . . . . . . Robots Built . | . . . . . . . . . . . . . . . . . Authchips . | . . . . . . . . . . . . . . . . . Time . | . . . . . . . . . . . . . . . . . Total Robot Build Rating . | . . . . . . . . . . . . . . . . . Part Schematics Acquired 4 | . . . . . . . . . . . . . . . 4 . Parts Built . | . . . . . . . . . . . . . . . . . Authchips . | . . . . . . . . . . . . . . . . . Time . | . . . . . . . . . . . . . . . . . Total Part Build Rating . | . . . . . . . . . . . . . . . . . Part Studies Acquired 4 | . . . . . 1 . . . . . . . 3 . . . Parts Repaired . | . . . . . . . . . . . . . . . . . Time . | . . . . . . . . . . . . . . . . . Parts Recycled . | . . . . . . . . . . . . . . . . . Recycled Matter . | . . . . . . . . . . . . . . . . . Retrieved Matter . | . . . . . . . . . . . . . . . . . Retrieved Components 3 | . . . . . . . . . . . 3 . . . . . Parts Scanalyzed . | . . . . . . . . . . . . . . . . . Part Schematics Acquired . | . . . . . . . . . . . . . . . . . Parts Damaged . | . . . . . . . . . . . . . . . . . Bothacking | -11 -10 -10 -8 -8 -6 -5 -5 -5 -5 -4 -4 -3 -2 -2 -2 -1 ------------ Run | Yrd Mat Sub Rec Scr Fac Fac Upp Upp War Pro Fac Res Res Qua Sec Acc Used RIF Installer . | . . . . . . . . . . . . . . . . . Robots Hacked . | . . . . . . . . . . . . . . . . . Non-combat . | . . . . . . . . . . . . . . . . . Combat . | . . . . . . . . . . . . . . . . . Robot Hacks Applied . | . . . . . . . . . . . . . . . . . Relay Couplers Released . | . . . . . . . . . . . . . . . . . Fabnet Peak Effective % . | . . . . . . . . . . . . . . . . . Robots Rewired 1 | . . . . . . . . . . . 1 . . . . . Allies Hacked . | . . . . . . . . . . . . . . . . . Hacks Repelled . | . . . . . . . . . . . . . . . . . Allies | -11 -10 -10 -8 -8 -6 -5 -5 -5 -5 -4 -4 -3 -2 -2 -2 -1 -------- Run | Yrd Mat Sub Rec Scr Fac Fac Upp Upp War Pro Fac Res Res Qua Sec Acc Total Allies 1 | . . . . . . . . . . . 1 . . . . . Largest Group 1 | . . . . . . . . . . . 1 . . . . . Highest-Rated Group 45 | . . . . . . . . . . . 45 . . . . . Highest-Rated Ally 45 | . . . . . . . . . . . 45 . . . . . Initial UFD Resources 55 | . . . . . 23 35 35 35 35 37 37 50 53 53 53 55 Total Orders 3 | . . . . . . . 3 . . . . . . . . . ROAM 1 | . . . . . . . 1 . . . . . . . . . EXPLORE 2 | . . . . . . . 2 . . . . . . . . . Ally Attacks . | . . . . . . . . . . . . . . . . . Total Damage . | . . . . . . . . . . . . . . . . . Kills . | . . . . . . . . . . . . . . . . . Allies Corrupted . | . . . . . . . . . . . . . . . . . Allies Melted . | . . . . . . . . . . . . . . . . . Intel | -11 -10 -10 -8 -8 -6 -5 -5 -5 -5 -4 -4 -3 -2 -2 -2 -1 ------- Run | Yrd Mat Sub Rec Scr Fac Fac Upp Upp War Pro Fac Res Res Qua Sec Acc Active Infowar (turns) 4853 | . 43 80 . . 745 505 476 173 383 161 416 380 140 292 689 370 Optics 4626 | . . . . . 641 505 476 173 383 161 416 380 140 292 689 370 Sensors 3202 | . . . . . . 356 476 173 365 161 416 380 140 292 185 258 Terrain 580 | . 43 . . . 434 . . . . . . . . . . 103 Traps 1437 | . . . . . 150 496 219 . 1 159 412 . . . . . Seismic 80 | . . 80 . . . . . . . . . . . . . . Cloaking 2375 | . . . . . . . 210 103 115 161 355 380 140 292 619 . ECM 293 | . . . . . . 1 . . . . . 18 . 1 273 . Robot Analysis Total 11 | . 3 . 1 7 . . . . . . . . . . . . Derelict Logs Recovered 3 | . . . . . . . 1 . . 2 . . . . . . Drone Launches 3 | . . . . . . . 3 . . . . . . . . . Drone Recoveries 1 | . . . . . . . 1 . . . . . . . . . Exploration | -11 -10 -10 -8 -8 -6 -5 -5 -5 -5 -4 -4 -3 -2 -2 -2 -1 ------------- Run | Yrd Mat Sub Rec Scr Fac Fac Upp Upp War Pro Fac Res Res Qua Sec Acc Turns Passed 8834 | 161 1301 767 108 1746 766 505 476 173 383 161 416 380 140 292 689 370 Spaces Moved 10294 | 63 652 401 67 755 653 820 599 260 676 372 738 624 311 493 1543 1267 Core 6 | 6 . . . . . . . . . . . . . . . . Treads 2061 | 57 652 401 67 678 206 . . . . . . . . . . . Legs 24 | . . . . . 24 . . . . . . . . . . . Wheels 86 | . . . . 77 9 . . . . . . . . . . . Hover 3903 | . . . . . 414 820 599 260 676 372 738 24 . . . . Flight 4026 | . . . . . . . . . . . . 600 311 493 1462 1160 Fastest Speed 22 | 50 160 160 160 100 44 41 37 37 34 40 34 27 24 24 25 22 Average Speed 68 | 151 160 160 160 228 89 45 41 52 47 41 39 29 27 27 30 26 Slowest Speed 250 | 160 160 160 160 250 250 50 48 62 50 42 40 36 28 29 102 29 Overloaded Moves 329 | . . . . . . . 124 5 17 . 105 21 6 51 . . Propulsion Burnouts . | . . . . . . . . . . . . . . . . . Robots Hopped 22 | . . . . . . . . . . . . 1 . 1 17 3 Potential Cave-ins . | . . . . . . . . . . . . . . . . . Cave-ins Triggered . | . . . . . . . . . . . . . . . . . Teleports 56 | . . . . . . . . . . . . . . . 11 45 Spacefolds 20 | . . . . . . . . . . . . . . . 6 14 Microwarps 12 | . . . . . . . . . . . . . . . 6 6 Exploration Rate (%) 45 | 4 92 34 12 58 23 17 75 54 88 60 15 16 12 63 94 48 Regions Visited 16 Branch Regions 9 Pre-discovered Areas 1 | . . . . . . . . . . . 1 . . . . . Known Exits Taken 11 | . . . . . 1 1 1 1 1 1 1 1 1 1 1 . Unknown Exits Taken 5 | 1 1 1 1 1 . . . . . . . . . . . . Scrap Searched 17 | . . 5 . 4 . . 3 . . 5 . . . . . . Spaces Dug 58 | . 2 . . . 7 3 1 . . . 10 10 1 11 10 3 Terrain Destroyed 87 | . 21 6 . . 7 3 1 . . . 10 10 1 11 14 3 Melee 41 | . . . . . 7 3 1 . . . 10 10 1 7 2 . Projectile 21 | . 2 . . . . . . . . . . . . 4 12 3 AOE 25 | . 19 6 . . . . . . . . . . . . . . Terrain Rammed . | . . . . . . . . . . . . . . . . . Walls Destroyed . | . . . . . . . . . . . . . . . . . Machines Disabled . | . . . . . . . . . . . . . . . . . Actions | -11 -10 -10 -8 -8 -6 -5 -5 -5 -5 -4 -4 -3 -2 -2 -2 -1 --------- Run | Yrd Mat Sub Rec Scr Fac Fac Upp Upp War Pro Fac Res Res Qua Sec Acc Total 11569 | 92 799 459 69 774 760 935 818 296 740 376 848 807 360 629 1596 1211 Wait 777 | . 54 1 . . 5 58 197 36 53 . 79 129 45 97 20 3 Move 10080 | 62 651 400 66 754 652 819 598 259 675 371 737 621 310 490 1442 1173 Hop 19 | . . . . . . . . . . . . 1 . 1 14 3 Pick Up 115 | 6 15 6 . 7 10 22 4 . 2 1 5 13 . 9 10 5 Fast Attach 57 | 6 1 1 . 1 7 4 2 . 4 . 1 2 . 1 16 11 Attach 84 | . 3 4 . 2 19 4 2 1 2 . 6 11 2 4 20 4 Detach 19 | . . . 2 . 2 . 1 . 1 . 2 3 . 2 6 . Swap 40 | . 11 6 . 7 1 3 1 . . 2 2 . . 2 5 . Drop 104 | 1 9 7 1 3 13 12 6 . 3 2 3 15 . 10 12 7 Fire 133 | 17 55 34 . . . . . . . . . . . 4 18 5 Melee 136 | . . . . . 51 13 5 . . . 11 12 3 9 32 . Ram . | . . . . . . . . . . . . . . . . . Kick . | . . . . . . . . . . . . . . . . . Crush . | . . . . . . . . . . . . . . . . . Escape Stasis 1 | . . . . . . . . . . . . . . . 1 . Rewire 3 | . . . . . . . 1 . . . 2 . . . . . Trap . | . . . . . . . . . . . . . . . . . Miscellaneous 1 | . . . . . . . 1 . . . . . . . . . Route ------- -11/Scrapyard -10/Materials (discovered 5 exits: [*Mat x3] / [*Min] / *Sub) -10/Subcaves (discovered 2 exits: [*Mat] / *Rec) -8/Recycling -8/Scraptown -6/Factory -5/Factory -5/Upper Caves -5/Upper Caves -5/Warlord -4/Proximity Caves -4/Factory (discovered 5 exits: *Res x4 / Arm) -3/Research (discovered 3 exits: *Res / Tes x2) -2/Research -2/Quarantine (discovered 3 exits: *Acc / *Sec / *Frg) -2/Section 7 -1/Access To Epsilon Eridani History --------- Turn | Location | Event 10 | -11/Scrapyard | Discovered new exit (range 15) 162 | -11/Scrapyard | Entered Materials 312 | -10/Materials | Build established: Mutant 530 | -10/Materials | Discovered new exit (range 16) 962 | -10/Materials | Derelicts attacked the area 963 | -10/Materials | Discovered new exit (range 16) 1149 | -10/Materials | Discovered new exit (range 16) 1370 | -10/Materials | Discovered new exit (range 15) 1450 | -10/Materials | Discovered new exit (range 9) 1463 | -10/Materials | Entered Subcaves 1470 | -10/Subcaves | Discovered new exit (range 15) 1482 | -10/Subcaves | Ambushed by Subdweller buried in earth 1492 | -10/Subcaves | Core integrity fell below 50% 1539 | -10/Subcaves | Lost 3 parts (1p1u1w) 1800 | -10/Subcaves | Shifting Twisted Machinery released Mak. Thermal Plating 1830 | -10/Subcaves | Shifting Twisted Machinery released Scrap Shield 1965 | -10/Subcaves | Visited 4L-MR0's lab 1987 | -10/Subcaves | Found Arachnoskeleton 2177 | -10/Subcaves | Discovered new exit (range 10) 2214 | -10/Subcaves | Core integrity fell below 20% 2230 | -10/Subcaves | Entered Recycling 2293 | -8/Recycling | Scanned before Scraplab entrance 2322 | -8/Recycling | Entered Scraplab 2334 | -8/Recycling | Discovered new exit (range 3) 2338 | -8/Recycling | Entered Scraptown 2338 | -8/Scraptown | System corruption cleaned by C-Scrubber 2703 | -8/Scraptown | Visited TADAMA 2772 | -8/Scraptown | Visited Spacefarers 2804 | -8/Scraptown | Visited Assassins FH 2842 | -8/Scraptown | Visited Shadow of the Wyrm 2873 | -8/Scraptown | Visited Comm Corps 2895 | -8/Scraptown | Visited CR-KLE's Repair Center 2918 | -8/Scraptown | CR-KLE repaired 7 parts 2961 | -8/Scraptown | Visited Cyclists 3009 | -8/Scraptown | Visited UFD Registry 3009 | -8/Scraptown | Registered with UFD as "Pipesourcer" 3064 | -8/Scraptown | Visited LU-1G1's Boring Crew 3098 | -8/Scraptown | Visited Derelict Rescue Squad 3112 | -8/Scraptown | Found DRS Beacon 3161 | -8/Scraptown | Visited Curators Association 3274 | -8/Scraptown | Delivered Scrap Shield to a Scientist 3334 | -8/Scraptown | Visited DA-N13 Charitable Foundation 3344 | -8/Scraptown | Found DCF Scrap (29 items) 3443 | -8/Scraptown | Visited Scrap Suit Storage 3478 | -8/Scraptown | Visited Abandonware Association 3513 | -8/Scraptown | Learned abandonware demo "REVENGE.EXE" 3556 | -8/Scraptown | Learned abandonware demo "OVRCLOCK.EXE" 3626 | -8/Scraptown | Visited Scrapoid Pod Storage 3661 | -8/Scraptown | Build established: Derelict-Mutant 3666 | -8/Scraptown | Visited Sword Containment 3706 | -8/Scraptown | Visited Analyses Database 3793 | -8/Scraptown | Found Prototype Slashing Weapon 4009 | -8/Scraptown | Met Optimus 4009 | -8/Scraptown | Accepted into 0bPrime 4079 | -8/Scraptown | Discovered new exit (range 5) 4084 | -8/Scraptown | Entered Factory 4084 | -6/Factory | Evolved 8 slots: Power x1, Propulsion x4, Utility x3 4101 | -6/Factory | Attached Arachnoskeleton, gained temporary slots: Propulsion x3 4104 | -6/Factory | Identified Companion Sword 4344 | -6/Factory | Spotted B-75 Beast 4587 | -6/Factory | Core integrity fell below 50% 4625 | -6/Factory | Lost 13 parts (2p7n3u1w) 4709 | -6/Factory | Loaded intel: 8 recycling unit locations 4811 | -6/Factory | Build established: Mutant 4830 | -6/Factory | Discovered new exit (range 8) 4849 | -6/Factory | Identified exit to Factory 4850 | -6/Factory | Entered another Factory area 4850 | -5/Factory | Evolved 2 slots: Utility x2 5172 | -5/Factory | Discovered new exit (range 15) 5294 | -5/Factory | Build established: Scout 5354 | -5/Factory | Identified exit to Upper Caves 5355 | -5/Factory | Entered Upper Caves 5357 | -5/Upper Caves | UFD Scientist delivered a prototype 5359 | -5/Upper Caves | Found Prototype Protection 5363 | -5/Upper Caves | Encountered a Warlord checkpoint 5714 | -5/Upper Caves | Activated DRS Beacon 5730 | -5/Upper Caves | Spotted B-75 Beast 5735 | -5/Upper Caves | P-70 Sage assimilated allied 8X-J05(h) 5738 | -5/Upper Caves | Ambushed by research squad 5813 | -5/Upper Caves | Discovered new exit (range 11) 5831 | -5/Upper Caves | Identified exit to Upper Caves 5831 | -5/Upper Caves | Entered another Upper Caves area 5909 | -5/Upper Caves | Build established: Ninja 5997 | -5/Upper Caves | Discovered new exit (range 13) 6004 | -5/Upper Caves | Attracted the attention of an 0b10 checkpoint 6004 | -5/Upper Caves | Identified exit to Warlord 6004 | -5/Upper Caves | Entered Warlord 6021 | -5/Warlord | System corruption cleaned by Quarantine Array 6148 | -5/Warlord | Learned Quarantine emergency access door positions 6148 | -5/Warlord | Learned Armory stockpile data 6148 | -5/Warlord | Learned 4 Research zone layouts 6148 | -5/Warlord | Learned 4 Access zone layouts 6149 | -5/Warlord | Learned Testing security intel 6149 | -5/Warlord | Learned Factory recycling unit intel 6149 | -5/Warlord | Learned Factory scanalyzer intel 6149 | -5/Warlord | Learned Armory scanalyzer intel 6168 | -5/Warlord | Visited the Vortex Lab 6174 | -5/Warlord | Found Prototype Energy Cannon 6176 | -5/Warlord | Found Prototype Energy Cannon 6189 | -5/Warlord | Warlord's base attacked by MAIN.C 6210 | -5/Warlord | Rebuked by Warlord 6261 | -5/Warlord | Found Prototype Device 6261 | -5/Warlord | Identified Minesniffer Drone Bay 6384 | -5/Warlord | Discovered new exit (range 12) 6387 | -5/Warlord | Identified exit to Proximity Caves 6387 | -5/Warlord | Entered Proximity Caves 6436 | -4/Proximity Caves | Identified exit to Factory 6548 | -4/Proximity Caves | Entered Factory 6548 | -4/Factory | Evolved 2 slots: Utility x2 6548 | -4/Factory | Identified Enh. Scrap Shield 6549 | -4/Factory | Identified exit to Armory 6550 | -4/Factory | Loaded intel: 8 recycling unit locations 6551 | -4/Factory | Loaded intel: 4 scanalyzer locations 6658 | -4/Factory | Identified Vortex Cannon (x2) 6709 | -4/Factory | Loaded intel: 8 recycling unit locations 6709 | -4/Factory | Learned location of Protoforge (-2) 6937 | -4/Factory | Identified exit to Research 6941 | -4/Factory | Spotted B-86 Titan 6964 | -4/Factory | Entered Research 6964 | -3/Research | Evolved 2 slots: Propulsion x1, Utility x1 6965 | -3/Research | Identified exit to Testing 7057 | -3/Research | Build established: Hacker-Ninja 7336 | -3/Research | Discovered new exit (range 13) 7340 | -3/Research | Identified exit to Research 7344 | -3/Research | Entered another Research area 7344 | -2/Research | Evolved 2 slots: Propulsion x1, Utility x1 7345 | -2/Research | Identified exit to Quarantine 7484 | -2/Research | Entered Quarantine 7491 | -2/Quarantine | Found Alien Slashing Weapon 7497 | -2/Quarantine | Identified Sigix Broadsword 7534 | -2/Quarantine | Found Alien Artifact 7712 | -2/Quarantine | Discovered new exit (range 18) 7725 | -2/Quarantine | Spotted Fortress 7749 | -2/Quarantine | Discovered new exit (range 6) 7749 | -2/Quarantine | Discovered new exit (range 6) 7750 | -2/Quarantine | Identified exit to Protoforge 7751 | -2/Quarantine | Identified exit to Section 7 7776 | -2/Quarantine | Entered Section 7 7788 | -2/Section 7 | Spotted S7 Guard 7811 | -2/Section 7 | Spotted S7 Guard 7839 | -2/Section 7 | Found Alien Artifact 7839 | -2/Section 7 | Identified Spacefold Activator 7847 | -2/Section 7 | Discovered new exit (range 5) 7848 | -2/Section 7 | Identified exit to Access 7858 | -2/Section 7 | Spotted Executioner 7858 | -2/Section 7 | Spotted Executioner 7875 | -2/Section 7 | Spotted B-99 Colossus 7897 | -2/Section 7 | Found Alien Artifact 7897 | -2/Section 7 | Identified Integrated Dissipator 7897 | -2/Section 7 | Installed Integrated Dissipator, increased core heat dissipation (+20) 7908 | -2/Section 7 | Found Alien Artifact 7908 | -2/Section 7 | Identified LRC Insulator 7908 | -2/Section 7 | Installed LRC Insulator, 1 resistance modified: EM +25% 7911 | -2/Section 7 | Found Alien Artifact 7911 | -2/Section 7 | Identified LRC Matter Compressor 7911 | -2/Section 7 | Installed LRC Matter Compressor, increased matter storage capacity (+125) 7925 | -2/Section 7 | Found Alien Artifact 7925 | -2/Section 7 | Identified Integrated Reactor 7925 | -2/Section 7 | Installed Integrated Reactor, increased core energy generation (+10) 7927 | -2/Section 7 | Found Integrated Reactor 7927 | -2/Section 7 | Installed Integrated Reactor, increased core energy generation (+10) 7987 | -2/Section 7 | Spotted Executioner 7988 | -2/Section 7 | Spotted Executioner 7993 | -2/Section 7 | Spotted Striker 7993 | -2/Section 7 | Spotted Striker 8000 | -2/Section 7 | Identified Subatomic Replicator 8051 | -2/Section 7 | Found Alien Energy Gun 8051 | -2/Section 7 | Identified Sigix Sheargun 8056 | -2/Section 7 | Found Sigix Sheargun 8057 | -2/Section 7 | Found Sigix Sheargun 8081 | -2/Section 7 | Found Alien Reactor 8089 | -2/Section 7 | Found Alien Artifact 8090 | -2/Section 7 | Found Alien Artifact 8134 | -2/Section 7 | Found Alien Artifact 8135 | -2/Section 7 | Identified Integrity Redistributor 8135 | -2/Section 7 | Used Integrity Redistributor, redistributed integrity from core (-85) 8153 | -2/Section 7 | Found Integrated Reactor 8153 | -2/Section 7 | Installed Integrated Reactor, increased core energy generation (+10) 8201 | -2/Section 7 | Found Alien Artifact 8201 | -2/Section 7 | Identified Integrated Thermoelectric Network 8201 | -2/Section 7 | Installed Integrated Thermoelectric Network, gained heat-energy exchange potential 8222 | -2/Section 7 | Found Alien Artifact 8222 | -2/Section 7 | Identified Core Membrane 8222 | -2/Section 7 | Installed Core Membrane, gained immunity to corruption 8254 | -2/Section 7 | Found Alien Artifact 8270 | -2/Section 7 | Build established: Hacker-Sprinter 8276 | -2/Section 7 | Search patrols dispatched 8279 | -2/Section 7 | Spotted S7 Guard 8290 | -2/Section 7 | Found Alien Artifact 8290 | -2/Section 7 | Identified Navigation Efficiency Matrix 8290 | -2/Section 7 | Installed Navigation Efficiency Matrix, process failed with unexpected side effects 8305 | -2/Section 7 | Found Alien Artifact 8305 | -2/Section 7 | Identified Integrated Mediator 8305 | -2/Section 7 | Installed Integrated Mediator, increased core attachment efficiency 8309 | -2/Section 7 | Spotted S7 Guard 8317 | -2/Section 7 | Scanned by Researcher 8318 | -2/Section 7 | Intercept squad dispatched 8322 | -2/Section 7 | Found Alien Artifact 8322 | -2/Section 7 | Identified Core Regenerator 8322 | -2/Section 7 | Used Core Regenerator, restored core integrity (+362) 8325 | -2/Section 7 | Identified Matter Drive 8326 | -2/Section 7 | Spotted Tracker 8327 | -2/Section 7 | Spotted Tracker 8327 | -2/Section 7 | Identified Transdimensional Reconstructor 8327 | -2/Section 7 | Warped through subspace 8331 | -2/Section 7 | Identified Microwarp Drive 8339 | -2/Section 7 | Spotted Alpha 7 8343 | -2/Section 7 | Identified Hpw. Transdimensional Reconstructor 8343 | -2/Section 7 | Warped through subspace 8357 | -2/Section 7 | Lost 4 parts (1p2u1w) 8366 | -2/Section 7 | Spotted B-90 Cyclops 8424 | -2/Section 7 | Spotted Alpha 7 8457 | -2/Section 7 | Core integrity fell below 50% 8461 | -2/Section 7 | Lost 7 parts (1p2n2u2w) 8465 | -2/Section 7 | Entered Access 8465 | -1/Access | Evolved 2 slots: Propulsion x1, Utility x1 8494 | -1/Access | Lost 3 parts (1p1n1w) 8654 | -1/Access | Used Subatomic Replicator to replicate Spacefold Activator 8691 | -1/Access | Found Hvy. Insulated Plating 8766 | -1/Access | Spotted B-99 Colossus 8782 | -1/Access | Spotted B-99 Colossus 8830 | -1/Access | Core integrity fell below 50% 8833 | -1/Access | Discovered new exit (range 3) 8835 | -1/Access | Identified exit to Surface 8835 | *** | Escaped! Last Messages --------------- 08810_ Navigation matrix triggers involuntary quantum shift. 08817_ ALERT: Suspicious intruders detected, dispatching Cutter reinforcements to area. 08819_ Navigation matrix triggers involuntary quantum shift. 08819_ Microwarped (distance 6). 08820_ Spacefolded through Wall. 08822_ Spacefolded through Terminal. 08823_ Connecting with Terminal... 08825_ Penetrated by Slug. 08829_ Connecting with Terminal... 08829_ Navigation matrix triggers involuntary quantum shift. 08829_ Microwarped (distance 8). 08830_ Spacefolded through Sealed Barrier. 08833_ Main Access Shell breached. 08833_ EXIT=FOUND 08835_ EXIT=IDENTIFIED: SURFACE [Achievement: Winner's Signature] Map ----- +----------------------------------------------------+ | ??????????????????????????????????# #???????????? | | ??????????????????????????????????# ????????????? | | ??????????????????????????????????? ????????????? | | ??????????????????????????????????? ????????????? | | ??????????????????????????????????? ????????????? | | ????????????????????????? ????????? ????????????? | | ???????????????????????#?????????????????????????? | | ??????????? ????????????????????????????????????? | | ??????? ??? ????????????????????????????????????? | | ??????????? ????????????? ??????????????????????? | | ??????????# ????????????????????????????????????? | | ??????????# #????????????????????#??????????????? | | ??????????# #???????????????????????????????????? | | ??????????# #???????????????????????????????????? | | ??????????# #??????? ??????? ???????#???????????? | | ???????#??# #???????????????????????????????????? | | ??????????# #??????????????????????#????????????? | | ??????????# #???????????#???????????????????????? | | ??????????# #???????????????????????????????????? | | ??????????# #######"###??????????#?????????#????? | | ???????#??# """T"""" ?????????????????????????? | | ??????????# """ """" ???????????BB????????????? | | ????????#?# u " """"""??????BB????????????? | | ??????????# " " "????????????????????? | | ??????????# " " "" "????????????????????? | | ??????????# c " " @" "????????s???????????? | | ???#??????# " " "????????s???????????? | | ???????#??# " "" """ "??"?BBs?s?????????? | | ??????????# c " "????BB????????????? | | ????#?????# " "??????s???????????? | | ??????#???# #######"##########??????????????????? | | ??????????# #????#????????????#?????????????????? | | ########### #????????????????????#??????????????? | | # # #???????????????????????#???????????? | | # # #??????????##############???????????? | | # " # #?????###### """G""" !#???????????? | | # """ #A ####### # """ """ #???????????? | | + """ + "" # #???????????? | | # " # T" # #???????????? | | # = # ####### # """""#???????????? | | # # #????### ## """""#???????????? | | #+######### #??????# ## """""#???????????? | | # #???????# #??????# ## """""#???????????? | | # #???????# #??????# ## """""#???????????? | | # #???????# #??????# ## """""#???????????? | | # ##?##??## ##?????# ## #???????????? | | ###"### #????## ##[ #?????#?????? | | #?#??# ###+##########???????????? | | " #?#??# " #?????????????????? | | ####### #????# #?????????????????? | +----------------------------------------------------+ Best States ------------- Heat Dissipation 91 Coolant Potential 65 Energy Generation 72 Energy Capacity 385 Matter Stores 300 Matter Capacity 425 Sight Range 22 Robot Scan Range 18 Terrain Scan Range 24 Terrain Scan Density 10 ECM Strength 2 Cloak Strength 2 Armor Coverage 800 Resistance: TH 10 Resistance: EM 25 Weapon Shielding 33 Phase Shifting 10 Evasion (%) 75 Melee Accuracy 8 Recoil Reduction 4 Offensive Hacking 10 Defensive Hacking 34 Item Schematics ----------------- Exp. Signal Interpreter | -2/Section 7 | Archive Mni. Smartbomb Launcher | -2/Section 7 | Archive Exp. Targeting Computer | -2/Section 7 | Archive Neutron Missile Launcher | -2/Section 7 | Archive Robot Schematics ------------------ None Fabricated ------------ Nothing Repaired ---------- Nothing Studied --------- Imp. Hover Unit | -6/Factory | Hacked Nuclear Pulse Array | -2/Research | Hacked Q-thruster | -2/Research | Hacked Lgt. Antimatter Reactor | -2/Research | Hacked Alien Tech Used ----------------- Sigix Broadsword Spacefold Activator Integrated Dissipator LRC Insulator LRC Matter Compressor Integrated Reactor Subatomic Replicator Sigix Sheargun Integrity Redistributor Integrated Thermoelectric Network Core Membrane Navigation Efficiency Matrix Integrated Mediator Core Regenerator Matter Drive Transdimensional Reconstructor Microwarp Drive High-powered Transdimensional Reconstructor Achievements -------------- Artifact Hunter Coming In Hot Signature Confirmed Vwoop! Walls Are Suggestions Winner's Signature Challenges ------------ None Game ------ Seed ShieldWarlordInsulator Manual? 0 Play Time 03:01:12 Cumulative 134.7 hours Start 2026.07.31 @ 17:24:23 End 2026.07.31 @ 20:52:23 Sessions 1 Manual Loads 0 Difficulty Rogue Special Mode None Game No. 146 Rogue 92 Adventurer 54 Explorer 0 Win Type 0 Total 5 Types 3/0/0/1/0/0/0/0/0/1 Lore% 56 Gallery% 54 Achievement% 49 Wizard Run 0 Options --------- Layout 1 ASCII 0 Keyboard 0 Movement Mouse Keybinds 1 Fullscreen 2 Font 32/Tamsyn Map View 50x35 Zoom Use 0% Tactical HUD 1 Map Filters NONE Filters NONE Steam 1 RUN: 99cb6f6d-e8ef-4ac7-b8ff-72770dc99b97